[Event "FIDE CB Open 2022"]
[Site "Ceske Budejovice"]
[Date "2022.07.02"]
[Round "2.39"]
[White "Tsifanskaya, Ludmila A"]
[Black "Nagyova, Daniela"]
[Result "1-0"]
[ECO "A08"]
[WhiteElo "1941"]
[BlackElo "1712"]
[Annotator "NA RC"]
[PlyCount "87"]
[EventDate "2022.07.01"]
[EventType "swiss"]
[EventCountry "CZE"]
[SourceTitle "playchess.com"]
[Source "ChessBase"]
[SourceQuality "1"]
[TimeControl "40/5400+30:1800+30"]

1. Nf3 {[%emt 0:00:23]} d5 {[%emt 0:00:15]} 2. g3 {[%emt 0:00:11]} e6 {[%emt 0:00:44]} 3. Bg2 {[%emt 0:00:08]} Nf6 {[%emt 0:00:19]} 4. O-O {[%emt 0:00:18]} Be7 {[%emt 0:00:28]} 5. d3 {[%emt 0:00:17]} b6 {[%emt 0:00:37]} 6. Nbd2 {[%emt 0:00:37]} Bb7 {[%emt 0:00:36]} 7. e4 {[%emt 0:01:19]} c5 {[%emt 0:03:52]} 8. Re1 {[%emt 0:04:09]} O-O {[%emt 0:06:14]} 9. e5 {[%emt 0:00:33]} Ne8 {[%emt 0:02:23]} 10. c3 {[%emt 0:01:45]} Nc7 {[%emt 0:04:15]} 11. Nf1 {[%emt 0:02:16]} Nd7 {[%emt 0:03:09]} 12. h4 {[%emt 0:01:25]} f6 {[%emt 0:08:26]} 13. exf6 {[%emt 0:03:06]} Bxf6 {[%emt 0:01:08]} 14. Bf4 {[%emt 0:03:59]} Re8 {[%emt 0:02:11]} 15. Ne5 {[%emt 0:02:48]} Nxe5 {[%emt 0:06:26]} 16. Bxe5 {[%emt 0:00:06]} Bxe5 {[%emt 0:00:26]} 17. Rxe5 {[%emt 0:00:31]} Qf6 {[%emt 0:01:28]} 18. f4 {[%emt 0:02:56]} Rab8 {[%emt 0:04:51]} 19. Nh2 {[%emt 0:08:35]} Nb5 {[%emt 0:04:48]} 20. Ng4 {[%emt 0:01:55]} Qd8 {[%emt 0:01:29]} 21. Qe2 {[%emt 0:03:22]} Qd6 {[%emt 0:03:38]} 22. Re1 {[%emt 0:03:36]} Nc7 {[%emt 0:01:48]} 23. Rg5 {[%emt 0:01:50]} Re7 {[%emt 0:06:50]} 24. f5 {[%emt 0:06:46]} Rf8 {[%emt 0:05:12]} 25. f6 {[%emt 0:00:50]} Rd7 {[%emt 0:00:42]} 26. fxg7 {[%emt 0:03:47]} Rxg7 {[%emt 0:00:48]} 27. Rxg7+ {[%emt 0:01:18]} Kxg7 {[%emt 0:00:03]} 28. Qe3 {[%emt 0:01:28]} Rf5 {[%emt 0:03:44]} 29. Qh6+ {[%emt 0:02:05]} Kh8 {[%emt 0:00:19]} 30. Rf1 {[%emt 0:09:11]} Rxf1+ {[%emt 0:02:16]} 31. Kxf1 {[%emt 0:00:15]} Qe7 {[%emt 0:02:27]} 32. Qf4 {[%emt 0:01:36]} Qg7 {[%emt 0:04:43]} 33. h5 {[%emt 0:02:51]} Bc8 {[%emt 0:05:35]} 34. h6 {[%emt 0:03:47]} Qe7 {[%emt 0:00:38]} 35. Qe5+ {[%emt 0:00:14]} Kg8 {[%emt 0:00:02]} 36. Nf6+ {[%emt 0:00:43]} Kf8 {[%emt 0:00:16]} 37. Kg1 {[%emt 0:02:49]} Ba6 {[%emt 0:02:14]} 38. Qg5 {[%emt 0:02:08]} Qf7 {[%emt 0:01:32]} 39. c4 {[%emt 0:04:42]} Ne8 {[%emt 0:04:12]} 40. Nxe8 {[%emt 0:00:42]} Kxe8 {[%emt 0:00:05]} 41. cxd5 {[%emt 0:31:27]} Bxd3 {[%emt 0:30:34]} 42. Qe5 {[%emt 0:00:59]} Qe7 {[%emt 0:01:41]} 43. dxe6 {[%emt 0:01:58]} Bb5 {[%emt 0:00:26]} 44. Qh8+ {[%emt 0:01:07]} 1-0

[Event "FIDE CB Open 2022"]
[Site "Ceske Budejovice"]
[Date "2022.07.02"]
[Round "2.40"]
[White "Zednicek, Filip"]
[Black "Hlavac, Rudolf"]
[Result "0-1"]
[ECO "B22"]
[WhiteElo "1688"]
[BlackElo "1931"]
[Annotator "NA RC"]
[PlyCount "78"]
[EventDate "2022.07.01"]
[EventType "swiss"]
[EventCountry "CZE"]
[SourceTitle "playchess.com"]
[Source "ChessBase"]
[SourceQuality "1"]
[TimeControl "40/5400+30:1800+30"]

1. e4 {[%emt 0:00:23]} c5 {[%emt 0:00:08]} 2. c3 {[%emt 0:00:12]} d5 {[%emt 0:00:00]} 3. exd5 {[%emt 0:00:01]} Qxd5 {[%emt 0:00:21]} 4. d4 {[%emt 0:00:03]} Nf6 {[%emt 0:00:11]} 5. Nf3 {[%emt 0:00:08]} e6 {[%emt 0:00:10]} 6. Na3 {[%emt 0:01:13]} Qd8 {[%emt 0:00:27]} 7. Bf4 {[%emt 0:00:37]} Nc6 {[%emt 0:01:26]} 8. dxc5 {[%emt 0:02:26]} Nd5 {[%emt 0:17:30]} 9. Bd6 {[%emt 0:01:05]} Bxd6 {[%emt 0:01:09]} 10. cxd6 {[%emt 0:00:04]} Qxd6 {[%emt 0:00:24]} 11. Nb5 {[%emt 0:10:34]} Qb8 {[%emt 0:09:53]} 12. c4 {[%emt 0:03:11]} Nf6 {[%emt 0:01:09]} 13. Nd6+ {[%emt 0:01:25]} Ke7 {[%emt 0:00:45]} 14. c5 {[%emt 0:01:52]} b6 {[%emt 0:03:01]} 15. Bb5 {[%emt 0:14:08]} Bd7 {[%emt 0:03:03]} 16. Bxc6 {[%emt 0:05:41]} Bxc6 {[%emt 0:00:28]} 17. Ne5 {[%emt 0:00:21]} Bd5 {[%emt 0:04:48]} 18. Qxd5 {[%emt 0:16:35]} exd5 {[%emt 0:03:36]} 19. Nc6+ {[%emt 0:00:12]} Ke6 {[%emt 0:00:25]} 20. Nxb8 {[%emt 0:00:17]} Raxb8 {[%emt 0:02:45]} 21. b4 {[%emt 0:00:31]} bxc5 {[%emt 0:01:16]} 22. bxc5 {[%emt 0:00:02]} Nd7 {[%emt 0:00:42]} 23. c6 {[%emt 0:01:15]} Kxd6 {[%emt 0:03:17]} 24. cxd7 {[%emt 0:00:02]} Rhd8 {[%emt 0:00:46]} 25. O-O {[%emt 0:00:20]} Rxd7 {[%emt 0:00:14]} 26. Rfd1 {[%emt 0:00:05]} Rb2 {[%emt 0:03:35]} 27. Rd3 {[%emt 0:00:55]} Rdb7 {[%emt 0:02:10]} 28. Rad1 {[%emt 0:00:13]} R7b5 {[%emt 0:00:17]} 29. a3 {[%emt 0:00:40]} R2b3 {[%emt 0:08:43]} 30. g3 {[%emt 0:00:39]} Rxd3 {[%emt 0:01:05]} 31. Rxd3 {[%emt 0:00:03]} a5 {[%emt 0:06:41]} 32. Kg2 {[%emt 0:00:37]} g6 {[%emt 0:06:53]} 33. Kf3 {[%emt 0:00:37]} a4 {[%emt 0:00:18]} 34. Ke3 {[%emt 0:00:34]} Rc5 {[%emt 0:07:03]} 35. h4 {[%emt 0:02:46]} h5 {[%emt 0:00:33]} 36. f3 {[%emt 0:01:12]} Rc4 {[%emt 0:01:15]} 37. Kd2 {[%emt 0:00:23]} d4 {[%emt 0:00:33]} 38. g4 {[%emt 0:00:01]} Kd5 {[%emt 0:00:44]} 39. Ke2 {[%emt 0:00:51]} Rc2+ {[%emt 0:00:33]} 0-1

[Event "FIDE CB Open 2022"]
[Site "Ceske Budejovice"]
[Date "2022.07.02"]
[Round "2.41"]
[White "Milovs, Daniels"]
[Black "Rybackova, Lucie"]
[Result "1-0"]
[ECO "B01"]
[WhiteElo "1926"]
[BlackElo "1696"]
[Annotator "NA RC"]
[PlyCount "80"]
[EventDate "2022.07.01"]
[EventType "swiss"]
[EventCountry "CZE"]
[SourceTitle "playchess.com"]
[Source "ChessBase"]
[SourceQuality "1"]
[TimeControl "40/5400+30:1800+30"]

1. e4 {[%emt 0:02:51]} d5 {[%emt 0:00:22]} 2. exd5 {[%emt 0:00:02]} Qxd5 {[%emt 0:00:22]} 3. Nc3 {[%emt 0:00:03]} Nf6 {[%emt 0:00:39]} 4. Bc4 {[%emt 0:00:03]} Qa5 {[%emt 0:00:30]} 5. d3 {[%emt 0:00:01]} c6 {[%emt 0:00:45]} 6. Bd2 {[%emt 0:00:24]} Qc7 {[%emt 0:00:39]} 7. h3 {[%emt 0:01:13]} e6 {[%emt 0:07:15]} 8. Qe2 {[%emt 0:01:38]} Nbd7 {[%emt 0:02:18]} 9. Nf3 {[%emt 0:07:13]} Be7 {[%emt 0:07:20]} 10. a4 {[%emt 0:05:21]} Nb6 {[%emt 0:09:59]} 11. Bb3 {[%emt 0:01:16]} Nbd5 {[%emt 0:02:04]} 12. Ne5 {[%emt 0:03:45]} Nd7 {[%emt 0:12:31]} 13. d4 {[%emt 0:03:56]} Nxe5 {[%emt 0:10:29]} 14. dxe5 {[%emt 0:00:02]} Nxc3 {[%emt 0:01:28]} 15. Bxc3 {[%emt 0:00:43]} Bd7 {[%emt 0:07:12]} 16. O-O {[%emt 0:04:20]} O-O {[%emt 0:06:58]} 17. Bc4 {[%emt 0:03:55]} Rab8 {[%emt 0:02:41]} 18. Bd3 {[%emt 0:04:24]} Rfd8 {[%emt 0:07:26]} 19. h4 {[%emt 0:03:03]} c5 {[%emt 0:05:27]} 20. h5 {[%emt 0:04:20]} Bc6 {[%emt 0:02:15]} 21. h6 {[%emt 0:00:38]} g6 {[%emt 0:01:30]} 22. Qg4 {[%emt 0:14:12]} Bf8 {[%emt 0:01:55]} 23. Qf4 {[%emt 0:05:53]} b6 {[%emt 0:00:46]} 24. Rfd1 {[%emt 0:02:40]} Bb7 {[%emt 0:00:51]} 25. Bf1 {[%emt 0:04:01]} Rd7 {[%emt 0:02:06]} 26. Rd6 {[%emt 0:02:26]} Qd8 {[%emt 0:06:09]} 27. Rad1 {[%emt 0:04:17]} Bc8 {[%emt 0:01:25]} 28. Rxd7 {[%emt 0:00:58]} Bxd7 {[%emt 0:00:02]} 29. Bb5 {[%emt 0:03:12]} Rb7 {[%emt 0:00:30]} 30. Qd2 {[%emt 0:00:56]} Qh4 {[%emt 0:00:57]} 31. Bxd7 {[%emt 0:03:07]} Bxh6 {[%emt 0:00:16]} 32. Qd3 {[%emt 0:01:36]} Qh5 {[%emt 0:00:48]} 33. Qf3 {[%emt 0:01:54]} Qxf3 {[%emt 0:00:27]} 34. gxf3 {[%emt 0:00:02]} Bf4 {[%emt 0:00:36]} 35. Bb5 {[%emt 0:01:28]} Kf8 {[%emt 0:00:26]} 36. Rd8+ {[%emt 0:02:51]} Kg7 {[%emt 0:00:13]} 37. Rd1 {[%emt 0:04:49]} Kf8 {[%emt 0:00:24]} 38. Re1 {[%emt 0:02:28]} Ke7 {[%emt 0:00:48]} 39. Re2 {[%emt 0:01:00]} Rb8 {[%emt 0:00:37]} 40. Kg2 {[%emt 0:00:00]} h6 {[%emt 0:00:00]} 1-0

[Event "FIDE CB Open 2022"]
[Site "Ceske Budejovice"]
[Date "2022.07.02"]
[Round "2.42"]
[White "Rybacek, Martin"]
[Black "Svanda, Adam"]
[Result "0-1"]
[ECO "B38"]
[WhiteElo "1650"]
[BlackElo "1918"]
[Annotator "NA RC"]
[PlyCount "125"]
[EventDate "2022.07.01"]
[EventType "swiss"]
[EventCountry "CZE"]
[SourceTitle "playchess.com"]
[Source "ChessBase"]
[SourceQuality "1"]
[TimeControl "40/5400+30:1800+30"]

1. Nf3 {[%emt 0:00:29]} c5 {[%emt 0:02:16]} 2. c4 {[%emt 0:01:22]} g6 {[%emt 0:00:40]} 3. Nc3 {[%emt 0:01:34]} Bg7 {[%emt 0:00:19]} 4. d4 {[%emt 0:02:18]} cxd4 {[%emt 0:00:23]} 5. Nxd4 {[%emt 0:00:49]} Nc6 {[%emt 0:00:14]} 6. Nxc6 {[%emt 0:02:18]} bxc6 {[%emt 0:00:12]} 7. e4 {[%emt 0:03:08]} d6 {[%emt 0:00:25]} 8. Be3 {[%emt 0:02:49]} Nf6 {[%emt 0:01:00]} 9. Be2 {[%emt 0:00:59]} O-O {[%emt 0:00:29]} 10. O-O {[%emt 0:00:28]} Be6 {[%emt 0:01:40]} 11. Qd2 {[%emt 0:04:07]} Ng4 {[%emt 0:01:29]} 12. Bxg4 {[%emt 0:03:21]} Bxg4 {[%emt 0:00:42]} 13. Bh6 {[%emt 0:00:27]} Qb6 {[%emt 0:02:54]} 14. Bxg7 {[%emt 0:00:57]} Kxg7 {[%emt 0:00:09]} 15. Rab1 {[%emt 0:03:27]} Rad8 {[%emt 0:03:25]} 16. Kh1 {[%emt 0:04:45]} Be6 {[%emt 0:09:12]} 17. b3 {[%emt 0:02:15]} f5 {[%emt 0:01:49]} 18. Rbe1 {[%emt 0:04:11]} Rfe8 {[%emt 0:01:57]} 19. Qg5 {[%emt 0:05:53]} h6 {[%emt 0:03:54]} 20. Qg3 {[%emt 0:06:09]} Qd4 {[%emt 0:00:41]} 21. Ne2 {[%emt 0:05:23]} Qe5 {[%emt 0:03:54]} 22. exf5 {[%emt 0:05:24]} Qxg3 {[%emt 0:07:56]} 23. Nxg3 {[%emt 0:00:13]} Bxf5 {[%emt 0:00:04]} 24. Nxf5+ {[%emt 0:00:20]} gxf5 {[%emt 0:00:02]} 25. Re6 {[%emt 0:00:41]} h5 {[%emt 0:02:00]} 26. Rfe1 {[%emt 0:01:13]} Kf7 {[%emt 0:00:33]} 27. g3 {[%emt 0:01:22]} Rd7 {[%emt 0:02:18]} 28. Kg2 {[%emt 0:02:02]} Rg8 {[%emt 0:01:43]} 29. Rh6 {[%emt 0:03:45]} e5 {[%emt 0:02:28]} 30. Rxh5 {[%emt 0:00:32]} Kg6 {[%emt 0:00:37]} 31. Rh4 {[%emt 0:00:16]} Re8 {[%emt 0:00:49]} 32. c5 {[%emt 0:03:52]} d5 {[%emt 0:00:21]} 33. Ra4 {[%emt 0:00:51]} d4 {[%emt 0:02:01]} 34. Ra6 {[%emt 0:01:17]} Re6 {[%emt 0:00:11]} 35. Kf3 {[%emt 0:03:50]} e4+ {[%emt 0:03:48]} 36. Ke2 {[%emt 0:03:44]} f4 {[%emt 0:05:31]} 37. gxf4 {[%emt 0:01:59]} Kf5 {[%emt 0:00:08]} 38. Rg1 {[%emt 0:12:31]} Kxf4 {[%emt 0:02:27]} 39. Rg3 {[%emt 0:01:26]} Rh7 {[%emt 0:01:24]} 40. h3 {[%emt 0:00:30]} Reh6 {[%emt 0:01:51]} 41. Ra4 {[%emt 0:34:04]} Rd7 {[%emt 0:33:32]} 42. Rg4+ {[%emt 0:00:00]} Kf5 {[%emt 0:00:00]} 43. Rg3 {[%emt 0:00:00]} Rh4 {[%emt 0:00:00]} 44. Rb4 {[%emt 0:00:00]} Ke5 {[%emt 0:00:00]} 45. Rf3 {[%emt 0:00:00]} e3 {[%emt 0:00:00]} 46. Ke1 {[%emt 0:03:03]} exf2+ {[%emt 0:00:00]} 47. Kxf2 {[%emt 0:01:04]} Kd5 {[%emt 0:00:28]} 48. Rc4 {[%emt 0:00:47]} Re7 {[%emt 0:00:58]} 49. Rd3 {[%emt 0:00:44]} Rg7 {[%emt 0:01:31]} 50. Rg3 {[%emt 0:01:10]} Rf4+ {[%emt 0:03:59]} 51. Kg2 {[%emt 0:00:22]} Rxg3+ {[%emt 0:02:38]} 52. Kxg3 {[%emt 0:00:30]} Rf8 {[%emt 0:00:13]} 53. Rc2 {[%emt 0:00:00]} d3 {[%emt 0:00:19]} 54. Rf2 {[%emt 0:00:19]} Re8 {[%emt 0:00:01]} 55. h4 {[%emt 0:01:27]} Kd4 {[%emt 0:00:27]} 56. Rf4+ {[%emt 0:00:10]} Ke3 {[%emt 0:00:18]} 57. Rf3+ {[%emt 0:00:42]} Ke2 {[%emt 0:00:09]} 58. Rf2+ {[%emt 0:00:32]} Ke1 {[%emt 0:00:02]} 59. Rb2 {[%emt 0:01:09]} d2 {[%emt 0:00:09]} 60. Rb1+ {[%emt 0:00:07]} d1=Q {[%emt 0:00:06]} 61. Rxd1+ {[%emt 0:00:04]} Kxd1 {[%emt 0:00:32]} 62. h5 {[%emt 0:00:12]} Kc2 {[%emt 0:00:59]} 63. Kf4 {[%emt 0:00:00]} 0-1

[Event "FIDE CB Open 2022"]
[Site "Ceske Budejovice"]
[Date "2022.07.02"]
[Round "2.43"]
[White "Stastna, Martina"]
[Black "Svoboda, Daniel"]
[Result "1/2-1/2"]
[ECO "B51"]
[WhiteElo "1912"]
[BlackElo "1679"]
[Annotator "NA RC"]
[PlyCount "47"]
[EventDate "2022.07.01"]
[EventType "swiss"]
[EventCountry "CZE"]
[SourceTitle "playchess.com"]
[Source "ChessBase"]
[SourceQuality "1"]
[TimeControl "40/5400+30:1800+30"]

1. e4 {[%emt 0:00:04]} c5 {[%emt 0:00:07]} 2. Nf3 {[%emt 0:00:08]} d6 {[%emt 0:00:07]} 3. Bb5+ {[%emt 0:00:11]} Nd7 {[%emt 0:00:17]} 4. O-O {[%emt 0:00:57]} a6 {[%emt 0:00:23]} 5. Bd3 {[%emt 0:00:12]} Ngf6 {[%emt 0:00:26]} 6. c3 {[%emt 0:00:21]} Ne5 {[%emt 0:01:11]} 7. Nxe5 {[%emt 0:02:13]} dxe5 {[%emt 0:00:10]} 8. Bc2 {[%emt 0:00:24]} e6 {[%emt 0:02:01]} 9. d3 {[%emt 0:01:03]} Be7 {[%emt 0:02:03]} 10. Nd2 {[%emt 0:03:17]} b5 {[%emt 0:05:17]} 11. b3 {[%emt 0:09:03]} O-O {[%emt 0:07:08]} 12. Bb2 {[%emt 0:03:50]} Qc7 {[%emt 0:06:05]} 13. Qe2 {[%emt 0:06:23]} Bb7 {[%emt 0:08:15]} 14. Rac1 {[%emt 0:03:33]} Rfd8 {[%emt 0:15:09]} 15. Bb1 {[%emt 0:06:23]} Rac8 {[%emt 0:05:23]} 16. d4 {[%emt 0:17:01]} Qd7 {[%emt 0:02:29]} 17. Nf3 {[%emt 0:02:56]} exd4 {[%emt 0:02:09]} 18. cxd4 {[%emt 0:00:38]} cxd4 {[%emt 0:04:51]} 19. Nxd4 {[%emt 0:04:38]} Bc5 {[%emt 0:16:36]} 20. Nf3 {[%emt 0:09:34]} Qe7 {[%emt 0:01:19]} 21. h3 {[%emt 0:03:11]} h6 {[%emt 0:03:49]} 22. Rfd1 {[%emt 0:06:20]} Rxd1+ {[%emt 0:02:52]} 23. Rxd1 {[%emt 0:00:08]} Rd8 {[%emt 0:00:46]} 24. Rxd8+ {[%emt 0:08:32]} 1/2-1/2

[Event "FIDE CB Open 2022"]
[Site "Ceske Budejovice"]
[Date "2022.07.02"]
[Round "2.44"]
[White "Pisar, Tomas"]
[Black "Zaza, Martin"]
[Result "0-1"]
[ECO "E15"]
[WhiteElo "1640"]
[BlackElo "1911"]
[Annotator "NA RC"]
[PlyCount "114"]
[EventDate "2022.07.01"]
[EventType "swiss"]
[EventCountry "CZE"]
[SourceTitle "playchess.com"]
[Source "ChessBase"]
[SourceQuality "1"]
[TimeControl "40/5400+30:1800+30"]

1. d4 {[%emt 0:00:09]} Nf6 {[%emt 0:00:06]} 2. Nf3 {[%emt 0:00:05]} e6 {[%emt 0:00:35]} 3. c4 {[%emt 0:00:15]} b6 {[%emt 0:02:50]} 4. g3 {[%emt 0:00:30]} Ba6 {[%emt 0:01:31]} 5. Ne5 {[%emt 0:06:01]} Bb7 {[%emt 0:04:25]} 6. f3 {[%emt 0:01:34]} c5 {[%emt 0:01:41]} 7. Be3 {[%emt 0:07:56]} cxd4 {[%emt 0:03:47]} 8. Bxd4 {[%emt 0:00:09]} Be7 {[%emt 0:04:27]} 9. e4 {[%emt 0:09:06]} O-O {[%emt 0:00:36]} 10. Be2 {[%emt 0:00:42]} d5 {[%emt 0:01:02]} 11. exd5 {[%emt 0:03:05]} exd5 {[%emt 0:01:11]} 12. O-O {[%emt 0:03:03]} Nc6 {[%emt 0:01:31]} 13. Nxc6 {[%emt 0:01:10]} Bxc6 {[%emt 0:01:04]} 14. Nc3 {[%emt 0:03:47]} dxc4 {[%emt 0:03:18]} 15. Bxc4 {[%emt 0:00:04]} Qc7 {[%emt 0:00:17]} 16. Qb3 {[%emt 0:06:01]} Rad8 {[%emt 0:02:23]} 17. Be3 {[%emt 0:03:22]} Qe5 {[%emt 0:00:59]} 18. Rae1 {[%emt 0:02:57]} Qh5 {[%emt 0:03:21]} 19. Ne2 {[%emt 0:12:39]} Bc5 {[%emt 0:00:59]} 20. Nf4 {[%emt 0:01:38]} Bxe3+ {[%emt 0:02:28]} 21. Qxe3 {[%emt 0:01:00]} Qa5 {[%emt 0:01:48]} 22. Rd1 {[%emt 0:04:50]} Rxd1 {[%emt 0:06:50]} 23. Rxd1 {[%emt 0:00:08]} Re8 {[%emt 0:00:14]} 24. Qb3 {[%emt 0:05:57]} Re1+ {[%emt 0:02:17]} 25. Kg2 {[%emt 0:01:08]} Rxd1 {[%emt 0:06:44]} 26. Qxd1 {[%emt 0:00:39]} b5 {[%emt 0:00:31]} 27. Bb3 {[%emt 0:04:58]} Qb6 {[%emt 0:01:05]} 28. Nd5 {[%emt 0:01:54]} Qd8 {[%emt 0:04:55]} 29. Nxf6+ {[%emt 0:00:20]} Qxf6 {[%emt 0:00:04]} 30. Qe2 {[%emt 0:00:43]} g5 {[%emt 0:00:19]} 31. g4 {[%emt 0:02:01]} h5 {[%emt 0:01:03]} 32. h3 {[%emt 0:00:55]} hxg4 {[%emt 0:00:07]} 33. hxg4 {[%emt 0:00:11]} Qf4 {[%emt 0:00:14]} 34. Kf2 {[%emt 0:01:39]} Qh2+ {[%emt 0:03:10]} 35. Ke3 {[%emt 0:00:24]} Qg1+ {[%emt 0:00:35]} 36. Qf2 {[%emt 0:01:03]} Qc1+ {[%emt 0:00:06]} 37. Kd3 {[%emt 0:01:52]} a5 {[%emt 0:03:10]} 38. Qe3 {[%emt 0:01:16]} Qb1+ {[%emt 0:02:29]} 39. Bc2 {[%emt 0:00:53]} Qf1+ {[%emt 0:00:12]} 40. Kc3 {[%emt 0:01:21]} Qxf3 {[%emt 0:00:38]} 41. Qxf3 {[%emt 0:30:03]} Bxf3 {[%emt 0:30:09]} 42. Bf5 {[%emt 0:00:02]} Kg7 {[%emt 0:02:48]} 43. Kd4 {[%emt 0:00:25]} Kf6 {[%emt 0:00:07]} 44. a3 {[%emt 0:00:39]} Be2 {[%emt 0:00:46]} 45. Bc8 {[%emt 0:01:13]} b4 {[%emt 0:00:22]} 46. axb4 {[%emt 0:00:09]} axb4 {[%emt 0:00:04]} 47. Bf5 {[%emt 0:00:19]} b3 {[%emt 0:00:55]} 48. Kc3 {[%emt 0:02:13]} Bd1 {[%emt 0:00:08]} 49. Kd2 {[%emt 0:00:09]} Bf3 {[%emt 0:00:05]} 50. Kc3 {[%emt 0:00:16]} Bd5 {[%emt 0:00:05]} 51. Bc8 {[%emt 0:00:54]} Ke5 {[%emt 0:01:04]} 52. Kb4 {[%emt 0:09:13]} Kf4 {[%emt 0:03:52]} 53. Kc3 {[%emt 0:01:08]} Be6 {[%emt 0:08:10]} 54. Bxe6 {[%emt 0:00:05]} fxe6 {[%emt 0:00:04]} 55. Kxb3 {[%emt 0:00:06]} Kxg4 {[%emt 0:00:04]} 56. Kc4 {[%emt 0:03:12]} Kf5 {[%emt 0:00:04]} 57. b4 {[%emt 0:00:17]} Ke5 {[%emt 0:00:08]} 0-1

[Event "FIDE CB Open 2022"]
[Site "Ceske Budejovice"]
[Date "2022.07.02"]
[Round "2.45"]
[White "Saravanan Durga"]
[Black "Hammel, Juergen"]
[Result "1/2-1/2"]
[ECO "D06"]
[WhiteElo "1908"]
[BlackElo "1650"]
[Annotator "RC"]
[PlyCount "98"]
[EventDate "2022.07.01"]
[EventType "swiss"]
[EventCountry "CZE"]
[SourceTitle "playchess.com"]
[Source "ChessBase"]
[SourceQuality "1"]
[TimeControl "40/5400+30:1800+30"]

1. d4 {[%emt 0:00:08]} Nf6 {[%emt 0:00:19]} 2. c4 {[%emt 0:00:06]} d5 {[%emt 0:00:12]} 3. cxd5 {[%emt 0:00:17]} Nxd5 {[%emt 0:01:13]} 4. e4 {[%emt 0:00:07]} Nf6 {[%emt 0:00:34]} 5. Nc3 {[%emt 0:00:27]} e6 {[%emt 0:01:23]} 6. Nf3 {[%emt 0:02:20]} Bb4 {[%emt 0:02:21]} 7. Bd3 {[%emt 0:06:30]} h6 {[%emt 0:11:02]} 8. Qa4+ {[%emt 0:04:25]} Nc6 {[%emt 0:00:11]} 9. a3 {[%emt 0:01:37]} Bxc3+ {[%emt 0:03:22]} 10. bxc3 {[%emt 0:00:04]} Bd7 {[%emt 0:00:08]} 11. Qc2 {[%emt 0:02:16]} O-O {[%emt 0:06:25]} 12. O-O {[%emt 0:34:02]} Ne8 {[%emt 0:11:10]} 13. d5 {[%emt 0:17:55]} exd5 {[%emt 0:01:23]} 14. exd5 {[%emt 0:00:01]} Ne7 {[%emt 0:00:29]} 15. c4 {[%emt 0:03:11]} c6 {[%emt 0:00:27]} 16. Qb3 {[%emt 0:01:24]} cxd5 {[%emt 0:04:55]} 17. cxd5 {[%emt 0:00:11]} Bg4 {[%emt 0:01:18]} 18. Ne5 {[%emt 0:03:14]} Nf6 {[%emt 0:01:08]} 19. f3 {[%emt 0:06:10]} Bh5 {[%emt 0:00:51]} 20. g4 {[%emt 0:00:51]} Bg6 {[%emt 0:00:38]} 21. Nxg6 {[%emt 0:10:07]} Nxg6 {[%emt 0:02:50]} 22. Bxg6 {[%emt 0:00:51]} fxg6 {[%emt 0:00:10]} 23. d6+ {[%emt 0:00:31]} Kh7 {[%emt 0:00:14]} 24. Rd1 {[%emt 0:02:15]} Nd7 {[%emt 0:02:11]} 25. Qxb7 {[%emt 0:02:28]} Qb6+ {[%emt 0:01:32]} 26. Qxb6 {[%emt 0:00:07]} Nxb6 {[%emt 0:00:28]} 27. Kg2 {[%emt 0:00:45]} Rad8 {[%emt 0:01:04]} 28. Be3 {[%emt 0:01:05]} Rf6 {[%emt 0:04:07]} 29. Bc5 {[%emt 0:00:37]} Nc4 {[%emt 0:03:28]} 30. d7 {[%emt 0:00:41]} Rf7 {[%emt 0:01:12]} 31. Rac1 {[%emt 0:00:18]} Ne5 {[%emt 0:01:42]} 32. Rd5 {[%emt 0:00:41]} Nxd7 {[%emt 0:06:18]} 33. Bxa7 {[%emt 0:00:33]} Ra8 {[%emt 0:01:45]} 34. Rc7 {[%emt 0:00:05]} Ne5 {[%emt 0:00:45]} 35. Rxf7 {[%emt 0:00:04]} Nxf7 {[%emt 0:00:25]} 36. Rd7 {[%emt 0:00:49]} Ne5 {[%emt 0:00:48]} 37. Rc7 {[%emt 0:00:10]} Kg8 {[%emt 0:03:38]} 38. a4 {[%emt 0:00:40]} g5 {[%emt 0:01:56]} 39. a5 {[%emt 0:01:13]} Nc6 {[%emt 0:00:21]} 40. Rxc6 {[%emt 0:00:39]} Rxa7 {[%emt 0:00:13]} 41. a6 {[%emt 0:30:02]} Kf8 {[%emt 0:30:30]} 42. Kf2 {[%emt 0:00:14]} Ke8 {[%emt 0:00:28]} 43. Ke3 {[%emt 0:01:03]} Kd7 {[%emt 0:01:29]} 44. Rg6 {[%emt 0:00:04]} Kc8 {[%emt 0:00:18]} 45. Kd4 {[%emt 0:00:28]} Kb8 {[%emt 0:00:48]} 46. Kc5 {[%emt 0:00:07]} Rf7 {[%emt 0:06:47]} 47. Kb6 {[%emt 0:00:32]} Rxf3 {[%emt 0:00:54]} 48. Rxg7 {[%emt 0:00:11]} Rb3+ {[%emt 0:00:12]} 49. Kc6 {[%emt 0:00:41]} Rc3+ {[%emt 0:03:05]} 1/2-1/2

[Event "FIDE CB Open 2022"]
[Site "Ceske Budejovice"]
[Date "2022.07.02"]
[Round "2.46"]
[White "Svejda, Karel"]
[Black "Toman, Jan"]
[Result "1/2-1/2"]
[ECO "D02"]
[WhiteElo "1619"]
[BlackElo "2142"]
[Annotator "NA RC"]
[PlyCount "77"]
[EventDate "2022.07.01"]
[EventType "swiss"]
[EventCountry "CZE"]
[SourceTitle "playchess.com"]
[Source "ChessBase"]
[SourceQuality "1"]
[TimeControl "40/5400+30:1800+30"]

1. d4 {[%emt 0:00:09]} Nf6 {[%emt 0:02:52]} 2. Nf3 {[%emt 0:00:10]} e6 {[%emt 0:00:10]} 3. Bf4 {[%emt 0:00:10]} d5 {[%emt 0:00:26]} 4. Bg3 {[%emt 0:00:00]} Bd6 {[%emt 0:03:14]} 5. e3 {[%emt 0:00:30]} O-O {[%emt 0:03:08]} 6. Nbd2 {[%emt 0:00:30]} b6 {[%emt 0:01:35]} 7. Bd3 {[%emt 0:05:43]} Bb7 {[%emt 0:02:52]} 8. Ne5 {[%emt 0:06:40]} Nbd7 {[%emt 0:14:38]} 9. f4 {[%emt 0:01:27]} Ne4 {[%emt 0:08:11]} 10. Nxe4 {[%emt 0:09:44]} dxe4 {[%emt 0:00:15]} 11. Bc4 {[%emt 0:02:46]} Nf6 {[%emt 0:02:48]} 12. Bh4 {[%emt 0:04:02]} Be7 {[%emt 0:01:41]} 13. Bxf6 {[%emt 0:05:58]} Bxf6 {[%emt 0:01:53]} 14. O-O {[%emt 0:00:39]} Qc8 {[%emt 0:02:59]} 15. Qe2 {[%emt 0:05:47]} a6 {[%emt 0:18:59]} 16. Qg4 {[%emt 0:11:14]} b5 {[%emt 0:06:22]} 17. Bb3 {[%emt 0:00:29]} Bd5 {[%emt 0:03:40]} 18. Qh3 {[%emt 0:11:22]} c5 {[%emt 0:05:58]} 19. Bxd5 {[%emt 0:02:13]} exd5 {[%emt 0:00:13]} 20. Nd7 {[%emt 0:08:39]} cxd4 {[%emt 0:00:14]} 21. Nxf8 {[%emt 0:00:36]} Qxh3 {[%emt 0:01:22]} 22. gxh3 {[%emt 0:00:01]} Kxf8 {[%emt 0:00:42]} 23. Rad1 {[%emt 0:04:38]} Rc8 {[%emt 0:00:24]} 24. exd4 {[%emt 0:02:44]} Rxc2 {[%emt 0:00:05]} 25. Rf2 {[%emt 0:01:45]} Rc4 {[%emt 0:00:06]} 26. Kf1 {[%emt 0:04:14]} e3 {[%emt 0:08:23]} 27. Rg2 {[%emt 0:04:24]} Rxd4 {[%emt 0:00:13]} 28. Rxd4 {[%emt 0:00:47]} Bxd4 {[%emt 0:00:03]} 29. Rg5 {[%emt 0:00:39]} Bxb2 {[%emt 0:00:41]} 30. Rxd5 {[%emt 0:00:03]} Bc3 {[%emt 0:03:46]} 31. Ke2 {[%emt 0:01:16]} Bd2 {[%emt 0:00:04]} 32. Re5 {[%emt 0:00:25]} f6 {[%emt 0:01:41]} 33. Re6 {[%emt 0:01:59]} a5 {[%emt 0:01:34]} 34. Rb6 {[%emt 0:00:20]} b4 {[%emt 0:00:36]} 35. Rb7 {[%emt 0:00:05]} a4 {[%emt 0:01:53]} 36. Ra7 {[%emt 0:01:16]} a3 {[%emt 0:00:12]} 37. f5 {[%emt 0:03:28]} Kg8 {[%emt 0:01:06]} 38. Ra8+ {[%emt 0:00:43]} Kf7 {[%emt 0:00:16]} 39. Ra7+ {[%emt 0:02:25]} 1/2-1/2